fUSD/lending_fUSD_20251117
["ID","MTS","AMOUNT","RATE_DAILY","PERIOD"]
[394207771,1763380234913,-241.69821507,0.00037885,7]
[394207772,1763380234922,-276.17380073,0.00037885,7]
[394207773,1763380234931,-230.11800003,0.00037885,7]
[394207774,1763380234941,-168.72003,0.00037888,30]
[394207775,1763380234950,-150.0,0.00037894,7]
[394207776,1763380234960,-150.0,0.00037894,7]
[394207777,1763380234969,-150.0,0.00037915,7]
[394207778,1763380234979,-200.39449813,0.00037927,7]
[394207779,1763380234989,-402.06504578,0.00037927,7]
[394207780,1763380234998,-294.21526007,0.00037927,7]
[394207781,1763380235007,-466.00581416,0.00037927,7]
[394207782,1763380235017,-241.69821507,0.00037927,7]
[394207783,1763380235026,-276.17380073,0.00037927,7]
[394207784,1763380235035,-230.11800003,0.00037927,7]
[394207785,1763380235044,-150.0,0.00037929,7]
[394207786,1763380235055,-150.0,0.00037947,7]
[394207787,1763380235068,-150.0,0.00037967,7]
[394207788,1763380235077,-200.39449813,0.00037968,7]
[394207789,1763380235087,-402.06504578,0.00037968,7]
[394207790,1763380235096,-294.21526007,0.00037968,7]
[394207791,1763380235106,-466.00581416,0.00037968,7]
[394207792,1763380235116,-241.69821507,0.00037968,7]
[394207793,1763380235125,-276.17380073,0.00037968,7]
[394207794,1763380235137,-230.11800003,0.00037968,7]
[394207795,1763380235146,-150.0,0.0003798,7]
[394207796,1763380235155,-150.0,0.00037985,7]
[394207797,1763380235165,-222.0,0.00038,30]
[394207798,1763380235176,-150.0,0.00038001,7]
[394207799,1763380235185,-200.39449813,0.0003801,7]
[394207800,1763380235195,-402.06504578,0.0003801,7]
[394207801,1763380235204,-294.21526007,0.0003801,7]
[394207802,1763380235213,-466.00581416,0.0003801,7]
[394207803,1763380235223,-241.69821507,0.0003801,7]
[394207804,1763380235231,-276.17380073,0.0003801,7]
[394207805,1763380235241,-230.11800003,0.0003801,7]
[394207806,1763380235252,-150.0,0.00038041,7]
[394207807,1763380235261,-150.0,0.00038046,7]
[394207808,1763380235270,-200.39449813,0.00038052,7]
[394207809,1763380235279,-402.06504578,0.00038052,7]
[394207810,1763380235289,-294.21526007,0.00038052,7]
[394207811,1763380235298,-466.00581416,0.00038052,7]
[394207812,1763380235308,-241.69821507,0.00038052,7]
[394207813,1763380235317,-276.17380073,0.00038052,7]
[394207814,1763380235327,-230.11800003,0.00038052,7]
[394207815,1763380235336,-150.0,0.00038085,7]
[394207816,1763380235345,-150.0,0.00038085,7]
[394207817,1763380235355,-168.72003,0.00038088,30]
[394207818,1763380235365,-200.39449813,0.00038094,7]
[394207819,1763380235374,-402.06504578,0.00038094,7]
[394207820,1763380235384,-294.21526007,0.00038094,7]
[394207821,1763380235393,-466.00581416,0.00038094,7]
[394207822,1763380235403,-241.69821507,0.00038094,7]
[394207823,1763380235412,-276.17380073,0.00038094,7]
[394207824,1763380235422,-230.11800003,0.00038094,7]
[394207825,1763380235432,-150.0,0.00038097,7]
[394207826,1763380235441,-150.0,0.00038107,7]
[394207827,1763380235451,-155.28,0.00038108,2]
[394207828,1763380235461,-150.0,0.00038112,7]
[394207829,1763380235473,-200.39449813,0.00038136,7]
[394207830,1763380235483,-402.06504578,0.00038136,7]
[394207831,1763380235493,-294.21526007,0.00038136,7]
[394207832,1763380235503,-466.00581416,0.00038136,7]
[394207833,1763380235513,-241.69821507,0.00038136,7]
[394207834,1763380235524,-276.17380073,0.00038136,7]
[394207835,1763380235538,-230.11800003,0.00038136,7]
[394207836,1763380235550,-150.0,0.00038153,7]
[394207837,1763380235560,-200.39449813,0.00038177,7]
[394207838,1763380235570,-402.06504578,0.00038177,7]
[394207839,1763380235580,-294.21526007,0.00038177,7]
[394207840,1763380235590,-466.00581416,0.00038177,7]
[394207841,1763380235601,-241.69821507,0.00038177,7]
[394207842,1763380235611,-276.17380073,0.00038177,7]
[394207843,1763380235622,-150.0,0.00038177,7]
[394207844,1763380235632,-150.0,0.00038177,7]
[394207845,1763380235641,-230.11800003,0.00038177,7]
[394207846,1763380235651,-150.0,0.00038204,7]
[394207847,1763380235660,-150.0,0.00038209,7]
[394207848,1763380235670,-150.0,0.00038213,7]
[394207849,1763380235684,-150.0,0.00038213,7]
[394207850,1763380235693,-200.39449813,0.00038219,7]
[394207851,1763380235703,-402.06504578,0.00038219,7]
[394207852,1763380235712,-294.21526007,0.00038219,7]
[394207853,1763380235721,-466.00581416,0.00038219,7]
[394207854,1763380235731,-241.69821507,0.00038219,7]
[394207855,1763380235740,-276.17380073,0.00038219,7]
[394207856,1763380235750,-230.11800003,0.00038219,7]
[394207857,1763380235759,-150.0,0.00038243,7]
[394207858,1763380235769,-200.39449813,0.00038261,7]
[394207859,1763380235779,-402.06504578,0.00038261,7]
[394207860,1763380235788,-294.21526007,0.00038261,7]
[394207861,1763380235798,-466.00581416,0.00038261,7]
[394207862,1763380235807,-241.69821507,0.00038261,7]
[394207863,1763380235816,-276.17380073,0.00038261,7]
[394207864,1763380235826,-230.11800003,0.00038261,7]
[394207865,1763380235835,-150.0,0.00038264,7]
[394207866,1763380235844,-168.72003,0.00038288,30]
[394207867,1763380235854,-150.0,0.00038292,7]
[394207868,1763380235864,-200.39449813,0.00038303,7]
[394207869,1763380235878,-402.06504578,0.00038303,7]
[394207870,1763380235887,-294.21526007,0.00038303,7]
[394207871,1763380235897,-466.00581416,0.00038303,7]
[394207872,1763380235907,-241.69821507,0.00038303,7]
[394207873,1763380235917,-276.17380073,0.00038303,7]
[394207874,1763380235928,-230.11800003,0.00038303,7]
[394207875,1763380235937,-150.0,0.00038309,7]
[394207876,1763380235947,-150.0,0.00038319,7]
[394207878,1763380235956,-150.0,0.0003832,7]
[394207879,1763380235966,-150.0,0.00038322,7]
[394207880,1763380235975,-200.39449813,0.00038345,7]
[394207881,1763380235985,-402.06504578,0.00038345,7]
[394207882,1763380235994,-294.21526007,0.00038345,7]
[394207883,1763380236004,-466.00581416,0.00038345,7]
[394207884,1763380236014,-241.69821507,0.00038345,7]
[394207885,1763380236025,-276.17380073,0.00038345,7]
[394207886,1763380236036,-230.11800003,0.00038345,7]
[394207887,1763380236048,-150.64830389,0.00038356,5]
[394207888,1763380236060,-150.0,0.00038375,7]
[394207889,1763380236073,-150.0,0.00038376,7]
[394207890,1763380236083,-200.39449813,0.00038387,7]
[394207891,1763380236095,-402.06504578,0.00038387,7]
[394207892,1763380236106,-294.21526007,0.00038387,7]
[394207893,1763380236117,-466.00581416,0.00038387,7]
[394207894,1763380236127,-241.69821507,0.00038387,7]
[394207895,1763380236140,-276.17380073,0.00038387,7]
[394207896,1763380236150,-230.11800003,0.00038387,7]
[394207897,1763380236160,-150.0,0.00038407,7]
[394207898,1763380236171,-150.0,0.00038425,7]
[394207899,1763380236180,-200.39449813,0.00038428,7]
[394207900,1763380236189,-402.06504578,0.00038428,7]
[394207901,1763380236199,-294.21526007,0.00038428,7]
[394207902,1763380236208,-466.00581416,0.00038428,7]
[394207903,1763380236217,-241.69821507,0.00038428,7]
[394207904,1763380236227,-276.17380073,0.00038428,7]
[394207905,1763380236236,-230.11800003,0.00038428,7]
[394207906,1763380236246,-150.0,0.00038432,7]
[394207907,1763380236257,-150.0,0.0003844,7]
[394207908,1763380236269,-150.0,0.0003844,7]
[394207909,1763380236279,-200.39449813,0.0003847,7]
[394207910,1763380236288,-402.06504578,0.0003847,7]
[394207911,1763380236300,-294.21526007,0.0003847,7]
[394207912,1763380236310,-466.00581416,0.0003847,7]
[394207913,1763380236322,-241.69821507,0.0003847,7]
[394207914,1763380236333,-276.17380073,0.0003847,7]
[394207915,1763380236342,-230.11800003,0.0003847,7]
[394207916,1763380236354,-168.72003,0.00038488,30]
[394207917,1763380236366,-150.0,0.00038488,7]
[394207918,1763380236375,-150.0,0.00038506,7]
[394207919,1763380236385,-200.39449813,0.00038512,7]
[394207920,1763380236394,-402.06504578,0.00038512,7]
[394207921,1763380236404,-294.21526007,0.00038512,7]
[394207922,1763380236414,-466.00581416,0.00038512,7]
[394207923,1763380236424,-241.69821507,0.00038512,7]
[394207924,1763380236434,-276.17380073,0.00038512,7]
[394207925,1763380236445,-230.11800003,0.00038512,7]
[394207926,1763380236455,-150.0,0.00038531,7]
[394207927,1763380236465,-150.0,0.00038531,7]
[394207928,1763380236475,-150.0,0.00038544,7]
[394207929,1763380236485,-200.39449813,0.00038554,7]
[394207930,1763380236495,-402.06504578,0.00038554,7]
[394207931,1763380236505,-294.21526007,0.00038554,7]
[394207932,1763380236516,-466.00581416,0.00038554,7]
[394207933,1763380236526,-241.69821507,0.00038554,7]
[394207934,1763380236537,-276.17380073,0.00038554,7]
[394207935,1763380236547,-230.11800003,0.00038554,7]
[394207936,1763380236557,-150.0,0.00038559,7]
[394207937,1763380236567,-150.0,0.00038572,7]
[394207938,1763380236576,-200.39449813,0.00038596,7]
[394207939,1763380236586,-402.06504578,0.00038596,7]
[394207940,1763380236595,-294.21526007,0.00038596,7]
[394207941,1763380236606,-466.00581416,0.00038596,7]
[394207942,1763380236617,-241.69821507,0.00038596,7]
[394207943,1763380236627,-276.17380073,0.00038596,7]
[394207944,1763380236636,-230.11800003,0.00038596,7]
[394207945,1763380236646,-150.0,0.000386,7]
[394207946,1763380236655,-200.39449813,0.00038637,7]
[394207947,1763380236673,-402.06504578,0.00038637,7]
[394207948,1763380236686,-294.21526007,0.00038637,7]
[394207949,1763380236696,-466.00581416,0.00038637,7]
[394207950,1763380236706,-241.69821507,0.00038637,7]
[394207951,1763380236716,-276.17380073,0.00038637,7]
[394207952,1763380236727,-150.0,0.00038637,7]
[394207953,1763380236737,-150.0,0.00038637,7]
[394207954,1763380236747,-150.0,0.00038637,7]
[394207955,1763380236759,-230.11800003,0.00038637,7]
[394207956,1763380236768,-150.0,0.00038656,7]
[394207957,1763380236778,-150.0,0.00038677,7]
[394207958,1763380236788,-200.39449813,0.00038679,7]
[394207959,1763380236797,-402.06504578,0.00038679,7]
[394207960,1763380236807,-294.21526007,0.00038679,7]
[394207961,1763380236816,-466.00581416,0.00038679,7]
[394207962,1763380236827,-241.69821507,0.00038679,7]
[394207963,1763380236837,-276.17380073,0.00038679,7]
[394207964,1763380236847,-230.11800003,0.00038679,7]
[394207965,1763380236857,-154.4,0.00038683,120]
[394207966,1763380236868,-168.72003,0.00038688,30]
[394207967,1763380236878,-150.0,0.00038703,7]
[394207968,1763380236888,-150.0,0.00038712,7]
[394207969,1763380236899,-200.39449813,0.00038721,7]
[394207970,1763380236909,-402.06504578,0.00038721,7]
[394207971,1763380236920,-294.21526007,0.00038721,7]
[394207972,1763380236930,-466.00581416,0.00038721,7]
[394207973,1763380236941,-241.69821507,0.00038721,7]
[394207974,1763380236952,-276.17380073,0.00038721,7]
[394207975,1763380236963,-230.11800003,0.00038721,7]
[394207976,1763380236974,-150.0,0.00038744,7]
[394207977,1763380236985,-200.39449813,0.00038763,7]
[394207978,1763380236997,-402.06504578,0.00038763,7]
[394207979,1763380237008,-294.21526007,0.00038763,7]
[394207980,1763380237023,-466.00581416,0.00038763,7]
[394207981,1763380237033,-241.69821507,0.00038763,7]
[394207982,1763380237043,-276.17380073,0.00038763,7]
[394207983,1763380237057,-230.11800003,0.00038763,7]
[394207984,1763380237070,-150.0,0.00038768,7]
[394207985,1763380237080,-150.0,0.00038769,7]
[394207986,1763380237091,-154.4,0.00038783,120]
[394207987,1763380237102,-150.0,0.00038795,7]
[394207988,1763380237115,-200.39449813,0.00038805,7]
[394207989,1763380237124,-402.06504578,0.00038805,7]
[394207990,1763380237134,-294.21526007,0.00038805,7]
[394207991,1763380237145,-466.00581416,0.00038805,7]
[394207992,1763380237155,-241.69821507,0.00038805,7]
[394207993,1763380237165,-276.17380073,0.00038805,7]
[394207994,1763380237175,-230.11800003,0.00038805,7]
[394207995,1763380237184,-693.051,0.00038823,52]
[394207996,1763380237194,-155.32959462,0.00038823,52]
[394207997,1763380237204,-150.0,0.00038824,7]
[394207998,1763380237216,-150.0,0.00038835,7]
[394207999,1763380237226,-200.39449813,0.00038847,7]
[394208000,1763380237235,-402.06504578,0.00038847,7]
[394208001,1763380237246,-294.21526007,0.00038847,7]
[394208002,1763380237256,-466.00581416,0.00038847,7]
[394208003,1763380237266,-241.69821507,0.00038847,7]
[394208004,1763380237275,-276.17380073,0.00038847,7]
[394208005,1763380237286,-230.11800003,0.00038847,7]
[394208006,1763380237295,-150.0,0.0003885,7]
[394208007,1763380237304,-150.0,0.0003885,7]
[394208008,1763380237314,-150.0,0.00038867,7]
[394208009,1763380237324,-150.0,0.0003888,7]
[394208010,1763380237333,-154.4,0.00038883,120]
[394208011,1763380237343,-200.39449813,0.00038888,7]
[394208012,1763380237352,-402.06504578,0.00038888,7]
[394208013,1763380237364,-294.21526007,0.00038888,7]
[394208014,1763380237374,-466.00581416,0.00038888,7]
[394208015,1763380237383,-241.69821507,0.00038888,7]
[394208016,1763380237393,-276.17380073,0.00038888,7]
[394208017,1763380237403,-230.11800003,0.00038888,7]
[394208018,1763380237413,-150.0,0.000389,7]
[394208019,1763380237423,-150.0,0.00038913,7]
[394208020,1763380237433,-150.0,0.00038913,7]
[394208021,1763380237443,-200.39449813,0.0003893,7]
[394208022,1763380237452,-402.06504578,0.0003893,7]
[394208023,1763380237463,-294.21526007,0.0003893,7]
[394208024,1763380237472,-466.00581416,0.0003893,7]
[394208025,1763380237482,-241.69821507,0.0003893,7]
[394208026,1763380237492,-276.17380073,0.0003893,7]
[394208027,1763380237502,-230.11800003,0.0003893,7]
[394208028,1763380237513,-150.0,0.00038936,7]
[394208029,1763380237524,-150.0,0.00038956,7]
[394208030,1763380237534,-900.0,0.00038961,2]
[394208031,1763380237544,-900.0,0.00038961,2]
[394208032,1763380237554,-150.0,0.00038966,7]
[394208033,1763380237564,-200.39449813,0.00038972,7]
[394208034,1763380237574,-402.06504578,0.00038972,7]
[394208035,1763380237585,-294.21526007,0.00038972,7]
[394208036,1763380237596,-466.00581416,0.00038972,7]
[394208037,1763380237606,-241.69821507,0.00038972,7]
[394208038,1763380237618,-276.17380073,0.00038972,7]
[394208039,1763380237627,-230.11800003,0.00038972,7]
[394208040,1763380237638,-154.4,0.00038983,120]
[394208041,1763380237648,-150.0,0.00038992,7]
[394208042,1763380237659,-222.0,0.00039,30]
[394208043,1763380237670,-200.39449813,0.00039014,7]
[394208044,1763380237682,-402.06504578,0.00039014,7]
[394208045,1763380237693,-294.21526007,0.00039014,7]
[394208046,1763380237703,-466.00581416,0.00039014,7]
[394208047,1763380237713,-241.69821507,0.00039014,7]
[394208048,1763380237723,-276.17380073,0.00039014,7]
[394208049,1763380237733,-230.11800003,0.00039014,7]
[394208050,1763380237743,-150.0,0.00039032,7]
[394208051,1763380237754,-150.0,0.00039032,7]
[394208052,1763380237765,-150.0,0.00039048,7]
[394208053,1763380237774,-200.39449813,0.00039056,7]
[394208054,1763380237784,-402.06504578,0.00039056,7]
[394208055,1763380237794,-294.21526007,0.00039056,7]
[394208056,1763380237803,-466.00581416,0.00039056,7]
[394208057,1763380237815,-241.69821507,0.00039056,7]
[394208058,1763380237827,-276.17380073,0.00039056,7]
[394208059,1763380237838,-230.11800003,0.00039056,7]
[394208060,1763380237848,-150.0,0.00039062,7]
[394208061,1763380237859,-154.4,0.00039083,120]
[394208062,1763380237869,-168.72003,0.00039088,30]
[394208063,1763380237879,-200.39449813,0.00039097,7]
[394208064,1763380237889,-402.06504578,0.00039097,7]
[394208065,1763380237898,-294.21526007,0.00039097,7]
[394208066,1763380237908,-466.00581416,0.00039097,7]
[394208067,1763380237918,-241.69821507,0.00039097,7]
[394208068,1763380237927,-276.17380073,0.00039097,7]
[394208069,1763380237937,-150.0,0.00039097,7]
[394208070,1763380237946,-150.0,0.00039097,7]
[394208071,1763380237956,-230.11800003,0.00039097,7]
[394208072,1763380237966,-150.0,0.00039104,7]
[394208073,1763380237976,-200.39449813,0.00039139,7]
[394208074,1763380237986,-402.06504578,0.00039139,7]
[394208075,1763380237996,-294.21526007,0.00039139,7]
[394208076,1763380238005,-466.00581416,0.00039139,7]
[394208077,1763380238014,-241.69821507,0.00039139,7]
[394208078,1763380238024,-276.17380073,0.00039139,7]
[394208079,1763380238034,-230.11800003,0.00039139,7]
[394208080,1763380238043,-150.0,0.0003915,7]
[394208081,1763380238056,-150.0,0.0003916,7]
[394208082,1763380238065,-900.0,0.00039161,2]
[394208083,1763380238075,-900.0,0.00039161,2]
[394208084,1763380238084,-150.0,0.00039163,7]
[394208085,1763380238095,-150.0,0.00039168,7]
[394208086,1763380238105,-150.0,0.00039168,7]
[394208087,1763380238114,-200.39449813,0.00039181,7]
[394208088,1763380238123,-402.06504578,0.00039181,7]
[394208089,1763380238134,-294.21526007,0.00039181,7]
[394208090,1763380238144,-466.00581416,0.00039181,7]
[394208091,1763380238154,-241.69821507,0.00039181,7]
[394208092,1763380238165,-276.17380073,0.00039181,7]
[394208093,1763380238175,-230.11800003,0.00039181,7]
[394208094,1763380238185,-154.4,0.00039183,120]
[394208095,1763380238195,-150.0,0.00039216,7]
[394208096,1763380238206,-200.39449813,0.00039223,7]
[394208097,1763380238216,-402.06504578,0.00039223,7]
[394208098,1763380238226,-294.21526007,0.00039223,7]
[394208099,1763380238236,-466.00581416,0.00039223,7]
[394208100,1763380238245,-241.69821507,0.00039223,7]
[394208101,1763380238255,-276.17380073,0.00039223,7]
[394208103,1763380238265,-230.11800003,0.00039223,7]
[394208104,1763380238274,-150.0,0.00039229,7]
[394208105,1763380238284,-200.39449813,0.00039265,7]
[394208106,1763380238294,-402.06504578,0.00039265,7]
[394208107,1763380238304,-294.21526007,0.00039265,7]
[394208108,1763380238314,-466.00581416,0.00039265,7]
[394208109,1763380238323,-241.69821507,0.00039265,7]
[394208110,1763380238333,-276.17380073,0.00039265,7]
[394208111,1763380238342,-230.11800003,0.00039265,7]
[394208112,1763380238352,-150.0,0.00039268,7]
[394208113,1763380238362,-150.0,0.00039271,7]
[394208114,1763380238372,-150.0,0.00039274,7]
[394208115,1763380238382,-154.45094947,0.00039283,120]
[394208116,1763380238392,-168.72003,0.00039288,30]
[394208117,1763380238402,-150.0,0.00039295,7]
[394208118,1763380238412,-200.39449813,0.00039306,7]
[394208119,1763380238422,-402.06504578,0.00039306,7]
[394208120,1763380238433,-294.21526007,0.00039306,7]
[394208121,1763380238443,-466.00581416,0.00039306,7]
[394208122,1763380238453,-241.69821507,0.00039306,7]
[394208123,1763380238462,-276.17380073,0.00039306,7]
[394208124,1763380238473,-230.11800003,0.00039306,7]
[394208125,1763380238485,-150.0,0.00039327,7]
[394208127,1763380238495,-150.0,0.00039327,7]
[394208128,1763380238504,-150.0,0.00039327,7]
[394208131,1763380238514,-150.0,0.00039327,7]
[394208133,1763380238523,-200.39449813,0.00039348,7]
[394208135,1763380238533,-402.06504578,0.00039348,7]
[394208137,1763380238543,-294.21526007,0.00039348,7]
[394208139,1763380238553,-466.00581416,0.00039348,7]
[394208140,1763380238563,-241.69821507,0.00039348,7]
[394208142,1763380238572,-276.17380073,0.00039348,7]
[394208144,1763380238583,-230.11800003,0.00039348,7]
[394208146,1763380238592,-150.0,0.0003936,7]
[394208148,1763380238603,-150.0,0.00039362,2]
[394208150,1763380238613,-150.0,0.0003938,7]
[394208153,1763380238623,-150.0,0.00039383,7]
[394208155,1763380238634,-150.0,0.00039387,7]
[394208157,1763380238643,-200.39449813,0.0003939,7]
[394208159,1763380238654,-402.06504578,0.0003939,7]
[394208161,1763380238664,-294.21526007,0.0003939,7]
[394208163,1763380238674,-466.00581416,0.0003939,7]
[394208164,1763380238684,-241.69821507,0.0003939,7]
[394208165,1763380238694,-276.17380073,0.0003939,7]
[394208166,1763380238703,-230.11800003,0.0003939,7]
[394208167,1763380238712,-150.0,0.00039426,7]
[394208168,1763380238722,-200.39449813,0.00039432,7]
[394208170,1763380238732,-402.06504578,0.00039432,7]
[394208171,1763380238742,-294.21526007,0.00039432,7]
[394208172,1763380238752,-466.00581416,0.00039432,7]
[394208173,1763380238763,-241.69821507,0.00039432,7]
[394208174,1763380238773,-276.17380073,0.00039432,7]
[394208175,1763380238783,-230.11800003,0.00039432,7]
[394208176,1763380238792,-150.0,0.00039439,7]
[394208177,1763380238802,-900.0,0.00039461,2]
[394208178,1763380238812,-900.0,0.00039461,2]
[394208179,1763380238822,-11032.36,0.00039462,2]
[394208180,1763380238832,-200.39449813,0.00039474,7]
[394208181,1763380238842,-402.06504578,0.00039474,7]
[394208182,1763380238853,-294.21526007,0.00039474,7]
[394208183,1763380238863,-466.00581416,0.00039474,7]
[394208184,1763380238873,-241.69821507,0.00039474,7]
[394208185,1763380238883,-276.17380073,0.00039474,7]
[394208186,1763380238893,-230.11800003,0.00039474,7]
[394208187,1763380238903,-150.0,0.00039487,7]
[394208188,1763380238914,-150.0,0.00039487,7]
[394208189,1763380238924,-168.72003,0.00039488,30]
[394208190,1763380238935,-150.0,0.00039492,7]
[394208191,1763380238945,-150.0,0.00039495,7]
[394208192,1763380238955,-180.37,0.00039497,2]
[394208193,1763380238965,-150.0,0.00039505,7]
[394208194,1763380238975,-200.39449813,0.00039516,7]
[394208195,1763380238985,-402.06504578,0.00039516,7]
[394208196,1763380238995,-294.21526007,0.00039516,7]
[394208197,1763380239005,-466.00581416,0.00039516,7]
[394208198,1763380239016,-241.69821507,0.00039516,7]
[394208199,1763380239302,-276.17380073,0.00039516,7]
[394208200,1763380239312,-230.11800003,0.00039516,7]
[394208201,1763380239321,-155.28,0.0003952,2]
[394208202,1763380239331,-150.0,0.00039551,7]
[394208203,1763380239341,-200.39449813,0.00039557,7]
[394208204,1763380239350,-402.06504578,0.00039557,7]
[394208205,1763380239360,-294.21526007,0.00039557,7]
[394208206,1763380239371,-466.00581416,0.00039557,7]
[394208207,1763380239380,-241.69821507,0.00039557,7]
[394208208,1763380239389,-276.17380073,0.00039557,7]
[394208209,1763380239403,-150.0,0.00039557,7]
[394208210,1763380239412,-150.0,0.00039557,7]
[394208211,1763380239422,-230.11800003,0.00039557,7]
[394208212,1763380239432,-900.0,0.0003956,2]
[394208213,1763380239443,-900.0,0.0003956,2]
[394208214,1763380239454,-150.0,0.00039593,7]
[394208215,1763380239464,-200.39449813,0.00039599,7]
[394208216,1763380239474,-402.06504578,0.00039599,7]
[394208217,1763380239484,-294.21526007,0.00039599,7]
[394208218,1763380239493,-466.00581416,0.00039599,7]
[394208219,1763380239504,-241.69821507,0.00039599,7]
[394208220,1763380239513,-276.17380073,0.00039599,7]
[394208221,1763380239523,-230.11800003,0.00039599,7]
[394208222,1763380239532,-150.0,0.00039607,7]
[394208223,1763380239542,-150.0,0.00039623,7]
[394208224,1763380239552,-150.0,0.00039623,7]
[394208225,1763380239561,-200.39449813,0.00039641,7]
[394208226,1763380239571,-402.06504578,0.00039641,7]
[394208227,1763380239581,-294.21526007,0.00039641,7]
[394208228,1763380239591,-466.00581416,0.00039641,7]
[394208229,1763380239604,-241.69821507,0.00039641,7]
[394208230,1763380239614,-276.17380073,0.00039641,7]
[394208231,1763380239623,-230.11800003,0.00039641,7]
[394208232,1763380239632,-900.0,0.0003966,2]
[394208233,1763380239642,-900.0,0.0003966,2]
[394208234,1763380239651,-150.0,0.00039663,7]
[394208235,1763380239660,-200.39449813,0.00039683,7]
[394208236,1763380239669,-402.06504578,0.00039683,7]
[394208237,1763380239679,-294.21526007,0.00039683,7]
[394208238,1763380239688,-466.00581416,0.00039683,7]
[394208239,1763380239698,-241.69821507,0.00039683,7]
[394208240,1763380239707,-276.17380073,0.00039683,7]
[394208241,1763380239716,-230.11800003,0.00039683,7]
[394208242,1763380239726,-168.72003,0.00039688,30]
[394208243,1763380239735,-150.0,0.00039689,7]
[394208244,1763380239744,-150.0,0.00039699,7]
[394208245,1763380239754,-150.0,0.00039719,7]
[394208246,1763380239764,-200.39449813,0.00039725,7]
[394208247,1763380239773,-402.06504578,0.00039725,7]
[394208248,1763380239784,-294.21526007,0.00039725,7]
[394208249,1763380239795,-466.00581416,0.00039725,7]
[394208250,1763380239804,-241.69821507,0.00039725,7]
[394208251,1763380239813,-276.17380073,0.00039725,7]
[394208252,1763380239823,-230.11800003,0.00039725,7]
[394208253,1763380239832,-150.0,0.00039741,7]
[394208254,1763380239842,-150.0,0.00039741,7]
[394208255,1763380239851,-150.0,0.00039755,7]
[394208256,1763380239861,-200.39449813,0.00039766,7]
[394208257,1763380239871,-402.06504578,0.00039766,7]
[394208258,1763380239880,-294.21526007,0.00039766,7]
[394208259,1763380239889,-466.00581416,0.00039766,7]
[394208260,1763380239899,-241.69821507,0.00039766,7]
[394208261,1763380239908,-276.17380073,0.00039766,7]
[394208262,1763380239920,-230.11800003,0.00039766,7]
[394208263,1763380239931,-150.0,0.00039775,7]
[394208264,1763380239942,-150.0,0.00039787,7]
[394208265,1763380239953,-7626.75784512,0.00039792,2]
[394208266,1763380239963,-150.0,0.00039805,7]
[394208267,1763380239973,-150.0,0.00039805,7]
[394208268,1763380239982,-200.39449813,0.00039808,7]
[394208269,1763380239991,-402.06504578,0.00039808,7]
[394208270,1763380240000,-294.21526007,0.00039808,7]
[394208271,1763380240011,-466.00581416,0.00039808,7]
[394208272,1763380240020,-241.69821507,0.00039808,7]
[394208273,1763380240030,-276.17380073,0.00039808,7]
[394208274,1763380240039,-230.11800003,0.00039808,7]
[394208275,1763380240049,-150.0,0.0003982,7]
[394208276,1763380240060,-150.0,0.00039831,7]
[394208277,1763380240073,-200.39449813,0.0003985,7]
[394208278,1763380240082,-402.06504578,0.0003985,7]
[394208279,1763380240093,-294.21526007,0.0003985,7]
[394208280,1763380240103,-466.00581416,0.0003985,7]
[394208281,1763380240114,-241.69821507,0.0003985,7]
[394208282,1763380240124,-276.17380073,0.0003985,7]
[394208283,1763380240134,-230.11800003,0.0003985,7]
[394208284,1763380240147,-150.0,0.0003986,7]
[394208285,1763380240157,-900.0,0.0003986,2]
[394208286,1763380240167,-900.0,0.0003986,2]
[394208289,1763380240185,-150.0,0.00039886,7]
[394208291,1763380240197,-150.0,0.00039887,7]
[394208293,1763380240207,-168.72003,0.00039888,30]
[394208295,1763380240218,-200.39449813,0.00039892,7]
[394208297,1763380240229,-402.06504578,0.00039892,7]
[394208299,1763380240240,-294.21526007,0.00039892,7]